[Event "Titled Tuesday Blitz January 03 Early 2023"]
[White "Krienke, Makaio"]
[Black "Karttunen, Mika"]
[WhiteFideId "2038854"]
[BlackFideId "502081"]
[WhiteElo "2115"]
[BlackElo "2490"]
[Result "0-1"]
[Round "05"]
[TimeControl "180+2"]
[Date "2023.01.03"]
[WhiteClock "0:00:18"]
[BlackClock "0:00:47"]

1. e4 {[%clk 0:03:00]}  e6 {[%clk 0:02:59]} 2. d4 {[%clk 0:03:00]}  d5 {[%clk 0:02:59]} 3. Nc3 {[%clk 0:03:01]}  Bb4 {[%clk 0:02:59]} 4. e5 {[%clk 0:03:00]}  c5 {[%clk 0:02:58]} 5. a3 {[%clk 0:03:01]}  Bxc3+ {[%clk 0:02:58]} 6. bxc3 {[%clk 0:03:02]}  Qa5 {[%clk 0:02:58]} 7. Bd2 {[%clk 0:03:00]}  Qa4 {[%clk 0:02:58]} 8. Nf3 {[%clk 0:02:53]}  b6 {[%clk 0:02:47]} 9. Bd3 {[%clk 0:02:49]}  h6 {[%clk 0:02:38]} 10. O-O {[%clk 0:02:48]}  Ne7 {[%clk 0:02:38]} 11. Qb1 {[%clk 0:02:44]}  Ba6 {[%clk 0:02:30]} 12. Qb2 {[%clk 0:02:39]}  Bxd3 {[%clk 0:02:26]} 13. cxd3 {[%clk 0:02:38]}  Nd7 {[%clk 0:02:20]} 14. c4 {[%clk 0:02:24]}  dxc4 {[%clk 0:02:15]} 15. dxc4 {[%clk 0:02:22]}  Qxc4 {[%clk 0:02:15]} 16. Rfc1 {[%clk 0:02:14]}  Qa4 {[%clk 0:01:47]} 17. dxc5 {[%clk 0:02:09]}  Nxc5 {[%clk 0:01:47]} 18. Bb4 {[%clk 0:01:37]}  Nd3 {[%clk 0:01:40]} 19. Qc2 {[%clk 0:01:17]}  Qxc2 {[%clk 0:01:40]} 20. Rxc2 {[%clk 0:01:18]}  Nd5 {[%clk 0:01:16]} 21. Bd6 {[%clk 0:01:17]}  Kd7 {[%clk 0:01:16]} 22. g3 {[%clk 0:00:44]}  Rhc8 {[%clk 0:01:14]} 23. Rd2 {[%clk 0:00:44]}  Nc5 {[%clk 0:01:12]} 24. Nd4 {[%clk 0:00:44]}  Ne4 {[%clk 0:01:09]} 25. Rd3 {[%clk 0:00:41]}  Nxd6 {[%clk 0:01:08]} 26. exd6 {[%clk 0:00:40]}  Kxd6 {[%clk 0:01:08]} 27. Rad1 {[%clk 0:00:38]}  g6 {[%clk 0:01:07]} 28. h4 {[%clk 0:00:34]}  h5 {[%clk 0:01:04]} 29. Nb5+ {[%clk 0:00:33]}  Ke7 {[%clk 0:01:04]} 30. a4 {[%clk 0:00:31]}  Rc5 {[%clk 0:01:01]} 31. Kg2 {[%clk 0:00:29]}  a6 {[%clk 0:01:00]} 32. Nd4 {[%clk 0:00:28]}  Rac8 {[%clk 0:00:57]} 33. Rf3 {[%clk 0:00:28]}  Rc3 {[%clk 0:00:53]} 34. Re1 {[%clk 0:00:27]}  Rxf3 {[%clk 0:00:53]} 35. Kxf3 {[%clk 0:00:28]}  Rc4 {[%clk 0:00:53]} 36. Re4 {[%clk 0:00:27]}  Kd7 {[%clk 0:00:47]} 37. Nxe6 {[%clk 0:00:20]}  Rc3+ {[%clk 0:00:47]} 38. Kg2 {[%clk 0:00:18]}  fxe6 {[%clk 0:00:47]} 0-1


[Site "https://www.chess.com"]

[Event "Titled Tuesday Blitz January 03 Early 2023"]
[White "Odegov, Artem"]
[Black "Jovic, Stanoje"]
[WhiteFideId "34183644"]
[BlackFideId "905020"]
[WhiteElo "2261"]
[BlackElo "2075"]
[Result "1-0"]
[Round "05"]
[TimeControl "180+2"]
[Date "2023.01.03"]
[WhiteClock "0:00:21"]
[BlackClock "0:00:02"]

1. d4 {[%clk 0:03:00]}  Nf6 {[%clk 0:02:56]} 2. c4 {[%clk 0:02:58]}  e6 {[%clk 0:02:56]} 3. Nf3 {[%clk 0:02:58]}  b6 {[%clk 0:02:56]} 4. g3 {[%clk 0:02:58]}  Ba6 {[%clk 0:02:56]} 5. b3 {[%clk 0:02:58]}  Bb4+ {[%clk 0:02:55]} 6. Bd2 {[%clk 0:02:58]}  Be7 {[%clk 0:02:55]} 7. Bg2 {[%clk 0:02:58]}  d5 {[%clk 0:02:55]} 8. O-O {[%clk 0:02:58]}  c6 {[%clk 0:02:53]} 9. Bc3 {[%clk 0:02:55]}  dxc4 {[%clk 0:02:45]} 10. Ne5 {[%clk 0:02:54]}  Nd5 {[%clk 0:02:28]} 11. bxc4 {[%clk 0:02:53]}  Nxc3 {[%clk 0:02:26]} 12. Nxc3 {[%clk 0:02:53]}  Qc8 {[%clk 0:02:18]} 13. Qa4 {[%clk 0:02:46]}  Bb7 {[%clk 0:02:16]} 14. Rab1 {[%clk 0:02:36]}  O-O {[%clk 0:02:11]} 15. Rfd1 {[%clk 0:02:32]}  c5 {[%clk 0:02:01]} 16. d5 {[%clk 0:02:25]}  Bf6 {[%clk 0:01:53]} 17. f4 {[%clk 0:02:20]}  Bxe5 {[%clk 0:01:50]} 18. fxe5 {[%clk 0:02:21]}  Nd7 {[%clk 0:01:41]} 19. dxe6 {[%clk 0:02:21]}  Nxe5 {[%clk 0:01:38]} 20. e7 {[%clk 0:02:21]}  Re8 {[%clk 0:01:28]} 21. Rd8 {[%clk 0:02:01]}  Rxd8 {[%clk 0:01:20]} 22. exd8=Q+ {[%clk 0:02:02]}  Qxd8 {[%clk 0:01:19]} 23. Bxb7 {[%clk 0:02:02]}  Qd4+ {[%clk 0:01:15]} 24. Kg2 {[%clk 0:01:49]}  Rf8 {[%clk 0:01:04]} 25. Nb5 {[%clk 0:01:44]}  Qe3 {[%clk 0:00:53]} 26. Qc2 {[%clk 0:01:35]}  a6 {[%clk 0:00:50]} 27. Nd6 {[%clk 0:01:29]}  Rd8 {[%clk 0:00:44]} 28. Nf5 {[%clk 0:01:23]}  Qg5 {[%clk 0:00:38]} 29. Rd1 {[%clk 0:01:21]}  Rxd1 {[%clk 0:00:30]} 30. Qxd1 {[%clk 0:01:21]}  g6 {[%clk 0:00:31]} 31. Nh4 {[%clk 0:01:16]}  Nxc4 {[%clk 0:00:27]} 32. Qd3 {[%clk 0:01:14]}  b5 {[%clk 0:00:23]} 33. Nf3 {[%clk 0:01:12]}  Qf6 {[%clk 0:00:20]} 34. Bd5 {[%clk 0:01:11]}  Nd6 {[%clk 0:00:16]} 35. Qe3 {[%clk 0:01:04]}  c4 {[%clk 0:00:14]} 36. Ne5 {[%clk 0:01:03]}  Nf5 {[%clk 0:00:13]} 37. Qf4 {[%clk 0:01:02]}  c3 {[%clk 0:00:13]} 38. Bb3 {[%clk 0:00:56]}  Kg7 {[%clk 0:00:11]} 39. Kf2 {[%clk 0:00:37]}  Nd6 {[%clk 0:00:10]} 40. Qxf6+ {[%clk 0:00:33]}  Kxf6 {[%clk 0:00:10]} 41. Nd7+ {[%clk 0:00:32]}  Ke7 {[%clk 0:00:09]} 42. Ne5 {[%clk 0:00:30]}  f6 {[%clk 0:00:06]} 43. Nf3 {[%clk 0:00:25]}  a5 {[%clk 0:00:05]} 44. Ke3 {[%clk 0:00:26]}  Nf5+ {[%clk 0:00:04]} 45. Kd3 {[%clk 0:00:26]}  b4 {[%clk 0:00:04]} 46. e4 {[%clk 0:00:24]}  Nd6 {[%clk 0:00:03]} 47. e5 {[%clk 0:00:25]}  Nb7 {[%clk 0:00:02]} 48. exf6+ {[%clk 0:00:23]}  Kxf6 {[%clk 0:00:03]} 49. Kd4 {[%clk 0:00:23]}  Kf5 {[%clk 0:00:02]} 50. Ng1 {[%clk 0:00:21]} 1-0


[Site "https://www.chess.com"]

[Event "Titled Tuesday Blitz January 03 Early 2023"]
[White "Najdin, Danil"]
[Black "Maltsevskaya, Aleksandra"]
[WhiteFideId "4172426"]
[BlackFideId "24174041"]
[WhiteElo "2235"]
[BlackElo "2390"]
[Result "1-0"]
[Round "05"]
[TimeControl "180+2"]
[Date "2023.01.03"]
[WhiteClock "0:00:12"]
[BlackClock "0:00:02"]

1. e4 {[%clk 0:03:00]}  c6 {[%clk 0:02:58]} 2. d4 {[%clk 0:03:00]}  d5 {[%clk 0:02:58]} 3. exd5 {[%clk 0:03:01]}  cxd5 {[%clk 0:02:57]} 4. Bd3 {[%clk 0:03:02]}  Nc6 {[%clk 0:02:57]} 5. c3 {[%clk 0:03:02]}  Qc7 {[%clk 0:02:56]} 6. h3 {[%clk 0:03:00]}  Nf6 {[%clk 0:02:56]} 7. Nf3 {[%clk 0:03:00]}  g6 {[%clk 0:02:56]} 8. O-O {[%clk 0:02:58]}  Bf5 {[%clk 0:02:57]} 9. Re1 {[%clk 0:02:58]}  e6 {[%clk 0:02:53]} 10. Bb5 {[%clk 0:02:55]}  Bd6 {[%clk 0:02:52]} 11. Ne5 {[%clk 0:02:46]}  Bxe5 {[%clk 0:02:51]} 12. Rxe5 {[%clk 0:02:27]}  Nd7 {[%clk 0:02:47]} 13. Re1 {[%clk 0:02:25]}  Bxb1 {[%clk 0:02:41]} 14. Rxb1 {[%clk 0:02:25]}  O-O-O {[%clk 0:02:40]} 15. Qf3 {[%clk 0:02:13]}  e5 {[%clk 0:02:12]} 16. Qxf7 {[%clk 0:01:55]}  exd4 {[%clk 0:02:08]} 17. Bf4 {[%clk 0:01:38]}  Qb6 {[%clk 0:02:04]} 18. Qxd5 {[%clk 0:01:37]}  Nc5 {[%clk 0:01:43]} 19. Qc4 {[%clk 0:01:27]}  Rhf8 {[%clk 0:01:35]} 20. Bg5 {[%clk 0:01:18]}  Na5 {[%clk 0:00:59]} 21. Bxd8 {[%clk 0:01:15]}  Rxd8 {[%clk 0:00:53]} 22. Qb4 {[%clk 0:01:10]}  d3 {[%clk 0:00:53]} 23. a4 {[%clk 0:00:49]}  d2 {[%clk 0:00:37]} 24. Red1 {[%clk 0:00:48]}  Nc6 {[%clk 0:00:21]} 25. Qg4+ {[%clk 0:00:41]}  Kb8 {[%clk 0:00:20]} 26. Rxd2 {[%clk 0:00:34]}  Rxd2 {[%clk 0:00:12]} 27. Qf4+ {[%clk 0:00:33]}  Ka8 {[%clk 0:00:10]} 28. Qxd2 {[%clk 0:00:33]}  a6 {[%clk 0:00:11]} 29. Bxc6 {[%clk 0:00:29]}  Qxc6 {[%clk 0:00:12]} 30. a5 {[%clk 0:00:26]}  Nb3 {[%clk 0:00:09]} 31. Qd8+ {[%clk 0:00:22]}  Ka7 {[%clk 0:00:09]} 32. Re1 {[%clk 0:00:22]}  Qc5 {[%clk 0:00:05]} 33. Re8 {[%clk 0:00:17]}  Qxa5 {[%clk 0:00:04]} 34. Qb8+ {[%clk 0:00:13]}  Kb6 {[%clk 0:00:03]} 35. Re6+ {[%clk 0:00:13]}  Kb5 {[%clk 0:00:02]} 36. Qxb7+ {[%clk 0:00:12]} 1-0


[Site "https://www.chess.com"]

[Event "Titled Tuesday Blitz January 03 Early 2023"]
[White "djokovic74"]
[Black "Sadovsky, Artem"]
[BlackFideId "4155840"]
[WhiteElo "2575"]
[BlackElo "2276"]
[Result "0-1"]
[Round "05"]
[TimeControl "180+2"]
[Date "2023.01.03"]
[WhiteClock "0:00:21"]
[BlackClock "0:00:20"]

1. e4 {[%clk 0:03:00]}  g6 {[%clk 0:02:59]} 2. d4 {[%clk 0:03:00]}  Bg7 {[%clk 0:02:59]} 3. Nf3 {[%clk 0:03:01]}  d6 {[%clk 0:02:58]} 4. Nc3 {[%clk 0:03:02]}  e5 {[%clk 0:02:58]} 5. dxe5 {[%clk 0:02:59]}  dxe5 {[%clk 0:02:59]} 6. Qxd8+ {[%clk 0:03:00]}  Kxd8 {[%clk 0:02:59]} 7. Bc4 {[%clk 0:03:00]}  f6 {[%clk 0:02:59]} 8. Be3 {[%clk 0:02:59]}  Nd7 {[%clk 0:03:00]} 9. O-O-O {[%clk 0:02:59]}  Bh6 {[%clk 0:03:00]} 10. Rhe1 {[%clk 0:02:55]}  c6 {[%clk 0:02:59]} 11. a4 {[%clk 0:02:53]}  Ke7 {[%clk 0:02:56]} 12. Kb1 {[%clk 0:02:50]}  Bxe3 {[%clk 0:02:50]} 13. Rxe3 {[%clk 0:02:50]}  a5 {[%clk 0:02:50]} 14. Ne1 {[%clk 0:02:43]}  Nh6 {[%clk 0:02:38]} 15. Nd3 {[%clk 0:02:43]}  Nf7 {[%clk 0:02:37]} 16. Bxf7 {[%clk 0:02:34]}  Kxf7 {[%clk 0:02:38]} 17. Rf1 {[%clk 0:02:35]}  Ke7 {[%clk 0:02:31]} 18. g3 {[%clk 0:02:09]}  Nb6 {[%clk 0:02:12]} 19. b3 {[%clk 0:02:08]}  Bh3 {[%clk 0:02:11]} 20. Rg1 {[%clk 0:02:00]}  h5 {[%clk 0:01:59]} 21. f4 {[%clk 0:01:59]}  Nd7 {[%clk 0:01:51]} 22. Kb2 {[%clk 0:01:20]}  Rad8 {[%clk 0:01:37]} 23. Nf2 {[%clk 0:01:17]}  Be6 {[%clk 0:01:36]} 24. Nd3 {[%clk 0:01:17]}  g5 {[%clk 0:01:21]} 25. fxe5 {[%clk 0:01:12]}  fxe5 {[%clk 0:01:19]} 26. Rf3 {[%clk 0:01:00]}  Rhf8 {[%clk 0:01:18]} 27. Rgf1 {[%clk 0:01:01]}  Bh3 {[%clk 0:01:18]} 28. Rxf8 {[%clk 0:00:53]}  Rxf8 {[%clk 0:01:19]} 29. Rxf8 {[%clk 0:00:54]}  Kxf8 {[%clk 0:01:20]} 30. Kc1 {[%clk 0:00:47]}  Be6 {[%clk 0:01:20]} 31. Kd2 {[%clk 0:00:40]}  Ke7 {[%clk 0:01:20]} 32. Ke3 {[%clk 0:00:39]}  Kd6 {[%clk 0:01:20]} 33. Nb1 {[%clk 0:00:33]}  b5 {[%clk 0:01:19]} 34. axb5 {[%clk 0:00:29]}  cxb5 {[%clk 0:01:20]} 35. Nc3 {[%clk 0:00:26]}  Kc6 {[%clk 0:01:18]} 36. Kd2 {[%clk 0:00:22]}  b4 {[%clk 0:01:03]} 37. Na4 {[%clk 0:00:21]}  Kd6 {[%clk 0:00:59]} 38. Ke3 {[%clk 0:00:17]}  Nf6 {[%clk 0:00:57]} 39. Nf2 {[%clk 0:00:17]}  Bd7 {[%clk 0:00:56]} 40. Nb2 {[%clk 0:00:17]}  Bb5 {[%clk 0:00:56]} 41. h4 {[%clk 0:00:15]}  gxh4 {[%clk 0:00:56]} 42. gxh4 {[%clk 0:00:16]}  Bf1 {[%clk 0:00:42]} 43. Nbd1 {[%clk 0:00:14]}  Kc5 {[%clk 0:00:36]} 44. Nb2 {[%clk 0:00:12]}  Bb5 {[%clk 0:00:27]} 45. Nfd3+ {[%clk 0:00:11]}  Kd6 {[%clk 0:00:27]} 46. Nf2 {[%clk 0:00:12]}  Nd7 {[%clk 0:00:26]} 47. Nbd3 {[%clk 0:00:11]}  Nb6 {[%clk 0:00:25]} 48. Nh1 {[%clk 0:00:08]}  Bd7 {[%clk 0:00:24]} 49. Ng3 {[%clk 0:00:08]}  Bg4 {[%clk 0:00:25]} 50. Nf1 {[%clk 0:00:05]}  Bd1 {[%clk 0:00:23]} 51. Kd2 {[%clk 0:00:05]}  Bf3 {[%clk 0:00:23]} 52. Ng3 {[%clk 0:00:05]}  Ke6 {[%clk 0:00:21]} 53. Ke3 {[%clk 0:00:06]}  Bd1 {[%clk 0:00:21]} 54. Kd2 {[%clk 0:00:07]}  Bg4 {[%clk 0:00:21]} 55. Nc5+ {[%clk 0:00:05]}  Kf6 {[%clk 0:00:19]} 56. Nb7 {[%clk 0:00:06]}  a4 {[%clk 0:00:20]} 57. bxa4 {[%clk 0:00:06]}  Nxa4 {[%clk 0:00:21]} 58. Na5 {[%clk 0:00:05]}  Nc5 {[%clk 0:00:20]} 59. Nc6 {[%clk 0:00:06]}  b3 {[%clk 0:00:20]} 60. cxb3 {[%clk 0:00:05]}  Nxb3+ {[%clk 0:00:21]} 61. Ke3 {[%clk 0:00:05]}  Nc5 {[%clk 0:00:21]} 62. Na5 {[%clk 0:00:06]}  Be6 {[%clk 0:00:21]} 63. Nxh5+ {[%clk 0:00:04]}  Kg6 {[%clk 0:00:21]} 64. Ng3 {[%clk 0:00:05]}  Bf7 {[%clk 0:00:18]} 65. Nc6 {[%clk 0:00:05]}  Kf6 {[%clk 0:00:18]} 66. Nb4 {[%clk 0:00:04]}  Bc4 {[%clk 0:00:17]} 67. Kf3 {[%clk 0:00:03]}  Bb3 {[%clk 0:00:16]} 68. Nd5+ {[%clk 0:00:04]}  Ke6 {[%clk 0:00:16]} 69. Ne3 {[%clk 0:00:03]}  Kf6 {[%clk 0:00:16]} 70. Ng4+ {[%clk 0:00:03]}  Ke6 {[%clk 0:00:16]} 71. h5 {[%clk 0:00:03]}  Bd1+ {[%clk 0:00:16]} 72. Ke3 {[%clk 0:00:03]}  Bxg4 {[%clk 0:00:16]} 73. h6 {[%clk 0:00:03]}  Kf7 {[%clk 0:00:14]} 74. h7 {[%clk 0:00:03]}  Kg7 {[%clk 0:00:14]} 75. Nh1 {[%clk 0:00:02]}  Kxh7 {[%clk 0:00:13]} 76. Nf2 {[%clk 0:00:03]}  Be6 {[%clk 0:00:13]} 77. Kd2 {[%clk 0:00:03]}  Kg6 {[%clk 0:00:13]} 78. Kc3 {[%clk 0:00:04]}  Kg5 {[%clk 0:00:12]} 79. Kb4 {[%clk 0:00:04]}  Nd7 {[%clk 0:00:11]} 80. Nd3 {[%clk 0:00:05]}  Bh3 {[%clk 0:00:11]} 81. Kb3 {[%clk 0:00:03]}  Bf1 {[%clk 0:00:11]} 82. Nxe5 {[%clk 0:00:03]}  Nxe5 {[%clk 0:00:12]} 83. Kc3 {[%clk 0:00:03]}  Kf4 {[%clk 0:00:12]} 84. Kd4 {[%clk 0:00:03]}  Bg2 {[%clk 0:00:13]} 85. Kc3 {[%clk 0:00:04]}  Bf3 {[%clk 0:00:14]} 86. Kd4 {[%clk 0:00:04]}  Bxe4 {[%clk 0:00:15]} 87. Kc3 {[%clk 0:00:05]}  Ke3 {[%clk 0:00:15]} 88. Kb3 {[%clk 0:00:06]}  Kd4 {[%clk 0:00:15]} 89. Kb4 {[%clk 0:00:07]}  Bd3 {[%clk 0:00:15]} 90. Kb3 {[%clk 0:00:07]}  Nc6 {[%clk 0:00:15]} 91. Ka3 {[%clk 0:00:08]}  Kc3 {[%clk 0:00:15]} 92. Ka2 {[%clk 0:00:07]}  Nb4+ {[%clk 0:00:13]} 93. Ka1 {[%clk 0:00:07]}  Nc2+ {[%clk 0:00:13]} 94. Ka2 {[%clk 0:00:07]}  Bc4+ {[%clk 0:00:14]} 95. Kb1 {[%clk 0:00:07]}  Bd5 {[%clk 0:00:15]} 96. Kc1 {[%clk 0:00:07]}  Ba2 {[%clk 0:00:16]} 97. Kd1 {[%clk 0:00:08]}  Nd4 {[%clk 0:00:14]} 98. Ke1 {[%clk 0:00:08]}  Kd3 {[%clk 0:00:09]} 99. Kd1 {[%clk 0:00:08]}  Ne2 {[%clk 0:00:08]} 100. Ke1 {[%clk 0:00:09]}  Ke3 {[%clk 0:00:09]} 101. Kd1 {[%clk 0:00:09]}  Bb3+ {[%clk 0:00:09]} 102. Ke1 {[%clk 0:00:10]}  Nd4 {[%clk 0:00:08]} 103. Kf1 {[%clk 0:00:10]}  Bd5 {[%clk 0:00:07]} 104. Ke1 {[%clk 0:00:10]}  Bf3 {[%clk 0:00:07]} 105. Kf1 {[%clk 0:00:10]}  Nc2 {[%clk 0:00:06]} 106. Kg1 {[%clk 0:00:10]}  Ke4 {[%clk 0:00:06]} 107. Kf2 {[%clk 0:00:11]}  Kf4 {[%clk 0:00:06]} 108. Kf1 {[%clk 0:00:12]}  Kg3 {[%clk 0:00:07]} 109. Kg1 {[%clk 0:00:12]}  Be2 {[%clk 0:00:07]} 110. Kh1 {[%clk 0:00:12]}  Na3 {[%clk 0:00:08]} 111. Kg1 {[%clk 0:00:12]}  Nb5 {[%clk 0:00:09]} 112. Kh1 {[%clk 0:00:13]}  Na7 {[%clk 0:00:10]} 113. Kg1 {[%clk 0:00:14]}  Nc8 {[%clk 0:00:11]} 114. Kh1 {[%clk 0:00:15]}  Ne7 {[%clk 0:00:12]} 115. Kg1 {[%clk 0:00:15]}  Ng6 {[%clk 0:00:13]} 116. Kh1 {[%clk 0:00:16]}  Nh8 {[%clk 0:00:14]} 117. Kg1 {[%clk 0:00:17]}  Nf7 {[%clk 0:00:14]} 118. Kh1 {[%clk 0:00:18]}  Nh6 {[%clk 0:00:15]} 119. Kg1 {[%clk 0:00:18]}  Nf5 {[%clk 0:00:16]} 120. Kh1 {[%clk 0:00:19]}  Nh4 {[%clk 0:00:17]} 121. Kg1 {[%clk 0:00:19]}  Nf3+ {[%clk 0:00:17]} 122. Kh1 {[%clk 0:00:19]}  Nd2 {[%clk 0:00:17]} 123. Kg1 {[%clk 0:00:20]}  Bf1 {[%clk 0:00:18]} 124. Kh1 {[%clk 0:00:20]}  Bh3 {[%clk 0:00:19]} 125. Kg1 {[%clk 0:00:21]}  Nf3+ {[%clk 0:00:19]} 126. Kh1 {[%clk 0:00:21]}  Bg2# {[%clk 0:00:20]} 0-1


[Site "https://www.chess.com"]

[Event "Titled Tuesday Blitz January 03 Early 2023"]
[White "Valle Maytin, Luis Enrique"]
[Black "Vlassov, Nikolai"]
[WhiteFideId "3503666"]
[BlackFideId "4103360"]
[WhiteElo "2241"]
[BlackElo "2283"]
[Result "0-1"]
[Round "05"]
[TimeControl "180+2"]
[Date "2023.01.03"]
[WhiteClock "0:00:16"]
[BlackClock "0:00:16"]

1. e4 {[%clk 0:02:58]}  c5 {[%clk 0:02:59]} 2. Nf3 {[%clk 0:02:57]}  d6 {[%clk 0:03:00]} 3. d4 {[%clk 0:02:57]}  cxd4 {[%clk 0:03:00]} 4. Nxd4 {[%clk 0:02:58]}  Nf6 {[%clk 0:03:01]} 5. Nc3 {[%clk 0:02:58]}  g6 {[%clk 0:03:01]} 6. Bc4 {[%clk 0:02:54]}  Bg7 {[%clk 0:02:56]} 7. f3 {[%clk 0:02:51]}  a6 {[%clk 0:02:40]} 8. Be3 {[%clk 0:02:43]}  O-O {[%clk 0:02:39]} 9. Qd2 {[%clk 0:02:34]}  b5 {[%clk 0:02:39]} 10. Bb3 {[%clk 0:02:34]}  Bb7 {[%clk 0:02:39]} 11. O-O-O {[%clk 0:02:27]}  b4 {[%clk 0:02:29]} 12. Nce2 {[%clk 0:02:25]}  e5 {[%clk 0:02:27]} 13. g4 {[%clk 0:02:01]}  exd4 {[%clk 0:02:25]} 14. Nxd4 {[%clk 0:02:01]}  a5 {[%clk 0:02:21]} 15. h4 {[%clk 0:02:00]}  a4 {[%clk 0:02:20]} 16. Bc4 {[%clk 0:02:00]}  d5 {[%clk 0:02:17]} 17. Qxb4 {[%clk 0:01:47]}  Qc8 {[%clk 0:01:59]} 18. exd5 {[%clk 0:01:42]}  Bxd5 {[%clk 0:01:54]} 19. Bd3 {[%clk 0:01:34]}  Bxa2 {[%clk 0:01:53]} 20. Qa3 {[%clk 0:01:24]}  Bc4 {[%clk 0:01:46]} 21. g5 {[%clk 0:01:21]}  Nd5 {[%clk 0:01:45]} 22. Bf2 {[%clk 0:01:16]}  Re8 {[%clk 0:01:19]} 23. h5 {[%clk 0:01:12]}  Bf8 {[%clk 0:01:17]} 24. Qa1 {[%clk 0:01:08]}  a3 {[%clk 0:01:16]} 25. b3 {[%clk 0:01:06]}  Bxd3 {[%clk 0:01:14]} 26. Rxd3 {[%clk 0:00:58]}  Nb4 {[%clk 0:01:02]} 27. Rdd1 {[%clk 0:00:48]}  Bg7 {[%clk 0:00:59]} 28. c4 {[%clk 0:00:43]}  N8c6 {[%clk 0:00:53]} 29. h6 {[%clk 0:00:42]}  Bxd4 {[%clk 0:00:50]} 30. Bxd4 {[%clk 0:00:39]}  Qf5 {[%clk 0:00:49]} 31. Rd2 {[%clk 0:00:34]}  Nxd4 {[%clk 0:00:31]} 32. Qxd4 {[%clk 0:00:25]}  Qe5 {[%clk 0:00:25]} 33. Qxe5 {[%clk 0:00:19]}  Rxe5 {[%clk 0:00:25]} 34. Kb1 {[%clk 0:00:20]}  Rxg5 {[%clk 0:00:19]} 35. Rhd1 {[%clk 0:00:19]}  Kf8 {[%clk 0:00:18]} 36. Rd7 {[%clk 0:00:16]}  a2+ {[%clk 0:00:17]} 37. Kb2 {[%clk 0:00:15]}  Rg2+ {[%clk 0:00:17]} 38. Ka1 {[%clk 0:00:15]}  Nc2+ {[%clk 0:00:16]} 39. Kb2 {[%clk 0:00:15]}  Ne3+ {[%clk 0:00:16]} 40. Ka1 {[%clk 0:00:15]}  Nxd1 {[%clk 0:00:16]} 41. Rxd1 {[%clk 0:00:15]}  Rf2 {[%clk 0:00:16]} 42. b4 {[%clk 0:00:13]}  Rxf3 {[%clk 0:00:16]} 43. b5 {[%clk 0:00:14]}  Rb3 {[%clk 0:00:16]} 44. Rc1 {[%clk 0:00:13]}  f5 {[%clk 0:00:15]} 45. c5 {[%clk 0:00:13]}  Rxb5 {[%clk 0:00:15]} 46. c6 {[%clk 0:00:13]}  Rb1+ {[%clk 0:00:15]} 47. Rxb1 {[%clk 0:00:13]}  axb1=Q+ {[%clk 0:00:16]} 48. Kxb1 {[%clk 0:00:14]}  Rc8 {[%clk 0:00:16]} 49. c7 {[%clk 0:00:15]}  Rxc7 {[%clk 0:00:16]} 50. Kb2 {[%clk 0:00:16]}  f4 {[%clk 0:00:16]} 0-1


[Site "https://www.chess.com"]

[Event "Titled Tuesday Blitz January 03 Early 2023"]
[White "Maevsky, Nikolay"]
[Black "Kaplan, Avi Harrison"]
[WhiteFideId "4198220"]
[BlackFideId "30934559"]
[WhiteElo "2277"]
[BlackElo "2146"]
[Result "1-0"]
[Round "05"]
[TimeControl "180+2"]
[Date "2023.01.03"]
[WhiteClock "0:00:32"]
[BlackClock "0:00:15"]

1. d4 {[%clk 0:03:00]}  Nf6 {[%clk 0:02:49]} 2. Nf3 {[%clk 0:03:00]}  b5 {[%clk 0:02:47]} 3. Bf4 {[%clk 0:02:58]}  Bb7 {[%clk 0:02:46]} 4. e3 {[%clk 0:02:58]}  a6 {[%clk 0:02:45]} 5. Nbd2 {[%clk 0:02:58]}  e6 {[%clk 0:02:46]} 6. h3 {[%clk 0:02:57]}  c5 {[%clk 0:02:46]} 7. c3 {[%clk 0:02:57]}  Be7 {[%clk 0:02:45]} 8. Bd3 {[%clk 0:02:57]}  d6 {[%clk 0:02:46]} 9. O-O {[%clk 0:02:57]}  Nbd7 {[%clk 0:02:45]} 10. a4 {[%clk 0:02:57]}  b4 {[%clk 0:02:43]} 11. Re1 {[%clk 0:02:57]}  O-O {[%clk 0:02:43]} 12. Bh2 {[%clk 0:02:56]}  Qc7 {[%clk 0:02:41]} 13. Rc1 {[%clk 0:02:54]}  Rfd8 {[%clk 0:02:39]} 14. cxb4 {[%clk 0:02:55]}  Qb6 {[%clk 0:02:26]} 15. bxc5 {[%clk 0:02:35]}  dxc5 {[%clk 0:02:25]} 16. Nc4 {[%clk 0:02:35]}  Qa7 {[%clk 0:02:24]} 17. Bc7 {[%clk 0:02:21]}  Rdc8 {[%clk 0:02:22]} 18. Bd6 {[%clk 0:02:21]}  Bd8 {[%clk 0:02:06]} 19. Nfe5 {[%clk 0:01:58]}  cxd4 {[%clk 0:01:59]} 20. exd4 {[%clk 0:01:58]}  Nb6 {[%clk 0:01:16]} 21. Bc5 {[%clk 0:01:42]}  a5 {[%clk 0:01:00]} 22. Nd6 {[%clk 0:01:39]}  Rcb8 {[%clk 0:00:56]} 23. Nb5 {[%clk 0:01:27]}  Qa6 {[%clk 0:00:54]} 24. Nc7 {[%clk 0:01:27]}  Qa7 {[%clk 0:00:54]} 25. Nxa8 {[%clk 0:01:26]}  Bxa8 {[%clk 0:00:55]} 26. Bb5 {[%clk 0:01:19]}  Rc8 {[%clk 0:00:20]} 27. f3 {[%clk 0:01:08]}  Qb7 {[%clk 0:00:19]} 28. Qd2 {[%clk 0:00:54]}  Nbd5 {[%clk 0:00:18]} 29. Nc4 {[%clk 0:00:52]}  Be7 {[%clk 0:00:12]} 30. Nxa5 {[%clk 0:00:50]}  Qc7 {[%clk 0:00:07]} 31. Bxe7 {[%clk 0:00:50]}  Qb8 {[%clk 0:00:04]} 32. Bxf6 {[%clk 0:00:47]}  Nxf6 {[%clk 0:00:04]} 33. Bc6 {[%clk 0:00:43]}  Bxc6 {[%clk 0:00:04]} 34. Nxc6 {[%clk 0:00:43]}  Qc7 {[%clk 0:00:04]} 35. Ne7+ {[%clk 0:00:43]}  Qxe7 {[%clk 0:00:05]} 36. Rxc8+ {[%clk 0:00:43]}  Ne8 {[%clk 0:00:06]} 37. Qc3 {[%clk 0:00:41]}  g6 {[%clk 0:00:05]} 38. Qc6 {[%clk 0:00:41]}  Kf8 {[%clk 0:00:05]} 39. Qc5 {[%clk 0:00:38]}  Qxc5 {[%clk 0:00:05]} 40. dxc5 {[%clk 0:00:38]}  Ke7 {[%clk 0:00:06]} 41. Rxe8+ {[%clk 0:00:38]}  Kxe8 {[%clk 0:00:06]} 42. b4 {[%clk 0:00:39]}  Kf8 {[%clk 0:00:07]} 43. h4 {[%clk 0:00:39]}  Kg7 {[%clk 0:00:08]} 44. c6 {[%clk 0:00:39]}  e5 {[%clk 0:00:09]} 45. b5 {[%clk 0:00:39]}  e4 {[%clk 0:00:10]} 46. c7 {[%clk 0:00:40]}  exf3 {[%clk 0:00:10]} 47. gxf3 {[%clk 0:00:40]}  h5 {[%clk 0:00:11]} 48. c8=Q {[%clk 0:00:40]}  g5 {[%clk 0:00:12]} 49. hxg5 {[%clk 0:00:40]}  h4 {[%clk 0:00:12]} 50. Re8 {[%clk 0:00:39]}  h3 {[%clk 0:00:12]} 51. Rg8+ {[%clk 0:00:39]}  Kh7 {[%clk 0:00:12]} 52. Rh8+ {[%clk 0:00:36]}  Kg6 {[%clk 0:00:12]} 53. Qg8+ {[%clk 0:00:36]}  Kf5 {[%clk 0:00:13]} 54. Qxf7+ {[%clk 0:00:36]}  Ke5 {[%clk 0:00:13]} 55. Re8+ {[%clk 0:00:34]}  Kd4 {[%clk 0:00:13]} 56. Qd7+ {[%clk 0:00:34]}  Kc5 {[%clk 0:00:14]} 57. Qc6+ {[%clk 0:00:34]}  Kb4 {[%clk 0:00:14]} 58. Re4+ {[%clk 0:00:33]}  Kb3 {[%clk 0:00:14]} 59. Qc4+ {[%clk 0:00:34]}  Kb2 {[%clk 0:00:14]} 60. Re2+ {[%clk 0:00:33]}  Ka3 {[%clk 0:00:15]} 61. Ra2# {[%clk 0:00:32]} 1-0


[Site "https://www.chess.com"]